fUSD/lending_fUSD_20240526
["ID","MTS","AMOUNT","RATE_DAILY","PERIOD"]
[327940025,1716687046260,-500.0,0.00028755,2]
[327940026,1716687046269,-500.0,0.00028755,2]
[327940027,1716687046278,-500.0,0.00028758,2]
[327940028,1716687046287,-162.76924044,0.0002876,2]
[327940029,1716687046296,-500.0,0.00028764,2]
[327940030,1716687046306,-500.0,0.00028764,2]
[327940031,1716687046315,-500.0,0.00028766,2]
[327940032,1716687046325,-7500.0,0.0002877,2]
[327940033,1716687046334,-500.0,0.00028772,2]
[327940034,1716687046343,-500.0,0.00028772,2]
[327940035,1716687046352,-500.0,0.00028775,2]
[327940036,1716687046362,-500.0,0.00028781,2]
[327940037,1716687046371,-500.0,0.00028781,2]
[327940038,1716687046381,-1345.0,0.00028782,5]
[327940039,1716687046391,-421.02,0.00028784,2]
[327940040,1716687046400,-524.53,0.00028784,2]
[327940041,1716687046409,-352.06,0.00028784,2]
[327940042,1716687046419,-157.94,0.00028784,2]
[327940043,1716687046428,-257.58,0.00028784,2]
[327940044,1716687046439,-372.7,0.00028784,2]
[327940045,1716687046450,-153.65,0.00028784,2]
[327940046,1716687046459,-300.0,0.00028784,2]
[327940047,1716687046469,-154.6,0.00028784,2]
[327940048,1716687046479,-163.58,0.00028784,2]
[327940049,1716687046488,-150.0,0.00028784,2]
[327940050,1716687046498,-1048.92,0.00028784,2]
[327940051,1716687046515,-150.0,0.00028784,2]
[327940052,1716687046529,-150.0,0.00028784,2]
[327940053,1716687046538,-150.0,0.00028784,2]
[327940054,1716687046548,-524.11,0.00028784,2]
[327940055,1716687046558,-500.0,0.00028784,2]
[327940056,1716687046568,-500.0,0.0002879,2]
[327940057,1716687046578,-500.0,0.0002879,2]
[327940058,1716687046588,-500.0,0.00028793,2]
[327940059,1716687046598,-500.0,0.00028799,2]
[327940060,1716687046608,-500.0,0.00028799,2]
[327940061,1716687046618,-688.0,0.000288,2]
[327940062,1716687046627,-2000.0,0.000288,2]
[327940063,1716687046638,-2000.0,0.000288,2]
[327940064,1716687046648,-2000.0,0.000288,2]
[327940065,1716687046658,-1005.82,0.000288,2]
[327940066,1716687046668,-499.6846451,0.000288,2]
[327940067,1716687046678,-307.86,0.000288,2]
[327940068,1716687046688,-500.0,0.00028802,2]
[327940069,1716687046698,-500.0,0.00028808,2]
[327940070,1716687046708,-500.0,0.00028808,2]
[327940071,1716687046718,-150.0,0.00028808,2]
[327940072,1716687046727,-500.0,0.0002881,2]
[327940073,1716687046737,-500.0,0.00028816,2]
[327940074,1716687046746,-500.0,0.00028816,2]
[327940075,1716687046756,-500.0,0.00028819,2]
[327940076,1716687046765,-500.0,0.00028825,2]
[327940077,1716687046776,-500.0,0.00028825,2]
[327940078,1716687046786,-500.0,0.00028828,2]
[327940079,1716687046795,-1264.0,0.0002883,15]
[327940080,1716687046807,-1257.0,0.0002883,15]
[327940081,1716687046817,-150.5,0.0002883,15]
[327940082,1716687046826,-500.0,0.00028834,2]
[327940083,1716687046836,-500.0,0.00028834,2]
[327940084,1716687046847,-150.0,0.00028834,2]
[327940085,1716687046856,-500.0,0.00028837,2]
[327940086,1716687046867,-1264.0,0.0002884,15]
[327940087,1716687046876,-1257.0,0.0002884,15]
[327940088,1716687046886,-150.5,0.0002884,15]
[327940089,1716687046896,-870.49,0.0002884,2]
[327940090,1716687046905,-1029.76,0.0002884,2]
[327940091,1716687046915,-194.04,0.0002884,2]
[327940092,1716687046925,-500.0,0.00028843,2]
[327940093,1716687046934,-500.0,0.00028843,2]
[327940094,1716687046944,-500.0,0.00028846,2]
[327940095,1716687046954,-4573.0,0.00028849,4]
[327940096,1716687046963,-1264.0,0.0002885,15]
[327940097,1716687046973,-1257.0,0.0002885,15]
[327940098,1716687046982,-150.5,0.0002885,15]
[327940099,1716687046993,-150.5,0.0002885,15]
[327940100,1716687047005,-500.0,0.00028852,2]
[327940101,1716687047014,-500.0,0.00028852,2]
[327940102,1716687047025,-500.0,0.00028854,2]
[327940103,1716687047035,-150.5,0.0002886,15]
[327940104,1716687047045,-151.0,0.0002886,7]
[327940105,1716687047054,-151.0,0.0002886,7]
[327940106,1716687047063,-151.0,0.0002886,7]
[327940107,1716687047073,-151.0,0.0002886,7]
[327940108,1716687047083,-5111.9768701,0.0002886,2]
[327940109,1716687047092,-1316.5900167,0.0002886,2]
[327940110,1716687047102,-603.8440163,0.0002886,2]
[327940111,1716687047112,-1736.6832276,0.0002886,2]
[327940112,1716687047126,-500.0,0.0002886,2]
[327940113,1716687047137,-500.0,0.0002886,2]
[327940114,1716687047147,-500.0,0.00028863,2]
[327940116,1716687047157,-183.392102,0.00028869,7]
[327940117,1716687047169,-183.392102,0.00028869,7]
[327940118,1716687047179,-151.0,0.00028869,7]
[327940119,1716687047188,-151.0,0.00028869,7]
[327940120,1716687047199,-151.0,0.00028869,7]
[327940121,1716687047210,-151.0,0.00028869,7]
[327940122,1716687047221,-151.0,0.00028869,7]
[327940123,1716687047232,-151.0,0.00028869,7]
[327940124,1716687047243,-151.0,0.00028869,7]
[327940125,1716687047253,-151.0,0.00028869,7]
[327940126,1716687047263,-151.0,0.00028869,7]
[327940127,1716687047273,-151.0,0.00028869,7]
[327940128,1716687047284,-151.0,0.00028869,7]
[327940129,1716687047294,-151.0,0.00028869,7]
[327940130,1716687047304,-151.0,0.00028869,7]
[327940131,1716687047315,-151.0,0.00028869,7]
[327940132,1716687047325,-151.0,0.00028869,7]
[327940133,1716687047335,-151.0,0.00028869,7]
[327940134,1716687047345,-151.0,0.00028869,7]
[327940135,1716687047355,-151.0,0.00028869,7]
[327940136,1716687047364,-217.727133,0.00028869,7]
[327940137,1716687047374,-151.0,0.00028869,7]
[327940138,1716687047383,-151.0,0.00028869,7]
[327940139,1716687047393,-151.0,0.00028869,7]
[327940140,1716687047403,-151.0,0.00028869,7]
[327940141,1716687047413,-399.367108,0.00028869,7]
[327940142,1716687047423,-399.367108,0.00028869,7]
[327940143,1716687047432,-262.752082,0.00028869,7]
[327940144,1716687047443,-262.752082,0.00028869,7]
[327940145,1716687047457,-500.0,0.00028869,2]
[327940146,1716687047467,-500.0,0.00028869,2]
[327940147,1716687047477,-150.5,0.0002887,15]
[327940148,1716687047487,-151.4,0.0002887,2]
[327940149,1716687047498,-151.4,0.0002887,2]
[327940150,1716687047508,-151.4,0.0002887,2]
[327940151,1716687047518,-151.4,0.0002887,2]
[327940152,1716687047529,-151.4,0.0002887,2]
[327940153,1716687047539,-151.4,0.0002887,2]
[327940154,1716687047549,-151.4,0.0002887,2]
[327940155,1716687047560,-151.4,0.0002887,2]
[327940156,1716687047570,-500.0,0.00028872,2]
[327940157,1716687047580,-678.0,0.00028877,4]
[327940158,1716687047590,-500.0,0.00028878,2]
[327940159,1716687047600,-2560.0,0.00028878,2]
[327940160,1716687047609,-512.0,0.00028878,2]
[327940161,1716687047619,-500.0,0.00028878,2]
[327940162,1716687047629,-160.0,0.00028878,2]
[327940163,1716687047640,-7258.3042827,0.00028878,2]
[327940164,1716687047651,-151.0,0.00028878,7]
[327940165,1716687047661,-151.0,0.00028878,7]
[327940166,1716687047671,-354.966263,0.00028878,7]
[327940167,1716687047680,-354.966263,0.00028878,7]
[327940168,1716687047690,-151.0,0.00028878,7]
[327940169,1716687047700,-172.254857,0.00028878,7]
[327940170,1716687047710,-151.0,0.00028878,7]
[327940171,1716687047719,-172.254857,0.00028878,7]
[327940172,1716687047729,-153.80993,0.00028878,7]
[327940173,1716687047739,-201.981151,0.00028878,7]
[327940174,1716687047750,-201.981151,0.00028878,7]
[327940175,1716687047760,-17902.9665831,0.0002888,9]
[327940176,1716687047770,-318567.937278,0.0002888,2]
[327940177,1716687047788,-281.07575007,0.0002888,2]
[327940178,1716687048881,-1406.257755,0.00027,2]
[327940179,1716687048891,-1607.151721,0.00027,2]
[327940180,1716687048901,-5421.20571356,0.0002888,2]
[327940223,1716688231662,-1207.02986899,0.00013967,2]
[327940224,1716688231672,-151.78,0.00013973,2]
[327940225,1716688231683,-2146.67171221,0.00017259,2]
[327940226,1716688231797,-933.49206678,0.00017259,2]
[327940227,1716688231809,-338.36,0.00017259,2]
[327940228,1716688231820,-663.22863068,0.00017259,2]
[327940229,1716688231832,-288.53183431,0.00017259,2]
[327940230,1716688231841,-151.78,0.00022174,2]
[327940231,1716688231851,-163.19613565,0.00022868,2]
[327940232,1716688231862,-529.63,0.000229,2]
[327940233,1716688231871,-547.88186647,0.00023104,2]
[327940234,1716688231881,-154.36286224,0.00023199,2]
[327940235,1716688231891,-150.0,0.00023452,2]
[327940236,1716688231900,-168.33385912,0.00024727,2]
[327940237,1716688231910,-154.75,0.00024891,2]
[327940238,1716688231920,-2559.0,0.000249,3]
[327940239,1716688231930,-250.0,0.000249,2]
[327940240,1716688231942,-927.45531659,0.00025,2]
[327940241,1716688231951,-250.0,0.00025024,2]
[327940242,1716688231960,-650.24,0.00025064,2]
[327940243,1716688231970,-169.59,0.00025093,2]
[327940244,1716688231979,-250.0,0.0002512,2]
[327940245,1716688231988,-529.63,0.00025163,2]
[327940246,1716688231997,-178.89,0.00025244,2]
[327940247,1716688232007,-349.76,0.00025649,2]
[327940248,1716688232017,-164.0,0.00026,2]
[327940249,1716688232028,-1907.389921,0.000268,2]
[327940250,1716688232037,-2861.084882,0.000268,2]
[327940251,1716688232046,-1376.18255724,0.000268,2]
[327940252,1716688232057,-2438.59728576,0.000268,2]
[327940253,1716688232067,-4768.474804,0.000268,2]
[327940254,1716688232076,-468.11521155,0.00026999,2]
[327940255,1716688232086,-6675.864726,0.00027,2]
[327940256,1716688232096,-7629.559687,0.00027,2]
[327940257,1716688232105,-959.35380584,0.00027,7]
[327940258,1716688232144,-1534.66086946,0.00027,7]
[327940259,1716688237807,-414.0846342,0.00027,7]
[327940260,1716688237818,-2791.9006905,0.00027,7]
[327940261,1716688237828,-180.0,0.00027313,2]
[327940262,1716688237837,-372.97,0.00027367,2]
[327940263,1716688237847,-808.31812277,0.0002739,2]
[327940265,1716688237856,-529.63,0.00027427,2]
[327940267,1716688237866,-295.19689321,0.00027434,7]
[327940269,1716688237876,-430.4198,0.00027861,2]
[327940270,1716688237885,-7017.00626666,0.00027862,2]
[327940271,1716688237894,-320.1922945,0.00027862,2]
[327940272,1716688237904,-195.61851678,0.00027961,10]
[327940273,1716688237915,-36475.0857415,0.00027961,2]
[327940274,1716688237962,-4912.170635,0.00027961,2]
[327940275,1716688237973,-396.47548887,0.00027961,2]
[327940276,1716688238015,-62409.84724485,0.00027961,2]
[327940279,1716688240169,-844.75818387,0.00027961,2]
[327940280,1716688240180,-1140.25883582,0.00027961,2]
[327940281,1716688240193,-3234.83629324,0.00027961,2]
[327940282,1716688240204,-458.65683397,0.00027961,2]
[327940283,1716688240214,-280.60874603,0.00027961,2]
[327940292,1716688242764,-2959.130316,0.00027961,2]
[327940293,1716688242776,-5654.40177787,0.00027961,2]
[327940298,1716688243695,-906.17357973,0.00027961,2]
[327940311,1716688245884,-511.30596307,0.00027961,2]
[327940508,1716688945010,213.27,0.00024689,120]
[327940512,1716689410594,3304.05195277,0.0003,120]
[327940513,1716689431865,-153.62,0.00013973,2]
[327940515,1716689431874,-704.54390953,0.00016999,2]
[327940519,1716689432031,-2937.35962712,0.00016999,2]
[327940520,1716689432041,-1524.0,0.00017,2]
[327940521,1716689432050,-304.69567152,0.00017258,2]
[327940522,1716689432059,-150.0,0.00017807,2]
[327940523,1716689432068,-283.23,0.00021684,2]
[327940524,1716689432078,-7520.92,0.00021684,2]
[327940525,1716689432087,-595.73,0.00021684,2]
[327940526,1716689432097,-171.77068913,0.00022367,2]
[327940527,1716689432106,-150.99,0.00022367,2]
[327940528,1716689432116,-150.99,0.00022367,2]
[327940529,1716689432124,-484.09,0.00022367,2]
[327940530,1716689432134,-547.88186647,0.00022369,2]
[327940531,1716689432143,-791.94,0.00022369,2]
[327940532,1716689432152,-1833.86,0.00022968,2]
[327940533,1716689432161,-7602.24,0.00022968,2]
[327940534,1716689432170,-150.0,0.00022999,2]
[327940535,1716689432179,-414.97,0.00023022,2]
[327940536,1716689432189,-150.0,0.00023049,2]
[327940537,1716689432198,-4027.09,0.00023057,2]
[327940538,1716689432208,-250.0,0.00023057,2]
[327940539,1716689432217,-250.0,0.00023075,2]
[327940540,1716689432225,-150.0,0.00023095,2]
[327940541,1716689432235,-150.0,0.00023095,2]
[327940542,1716689432243,-6086.55,0.00023137,2]
[327940543,1716689432254,-200.0,0.00023242,2]
[327940544,1716689432263,-250.0,0.00023273,2]
[327940545,1716689432273,-173.81794902,0.00023286,2]
[327940546,1716689432282,-150.0,0.00023339,2]
[327940547,1716689432291,-150.0,0.00023377,2]
[327940548,1716689432301,-150.0,0.00023378,2]
[327940549,1716689432310,-150.0,0.00023389,2]
[327940550,1716689432319,-343.03,0.00023471,2]
[327940551,1716689432328,-278.82,0.00023473,2]
[327940552,1716689432337,-150.0,0.00023508,2]
[327940553,1716689432346,-154.08142139,0.00023574,2]
[327940554,1716689432355,-1025.15,0.00023602,2]
[327940555,1716689432365,-150.0,0.0002363,2]
[327940556,1716689432374,-150.0,0.00023631,2]
[327940557,1716689432383,-150.0,0.00023631,2]
[327940558,1716689432392,-150.0,0.00023738,2]
[327940559,1716689432401,-150.0,0.00023754,2]
[327940560,1716689432410,-150.0,0.0002376,2]
[327940561,1716689432419,-150.0,0.00023888,2]
[327940562,1716689432428,-595.73,0.00023948,2]
[327940563,1716689432443,-150.0,0.00023951,2]
[327940564,1716689432454,-150.0,0.00023973,2]
[327940565,1716689432463,-150.0,0.00024095,2]
[327940566,1716689432472,-150.0,0.00024397,2]
[327940567,1716689432482,-6260.7,0.00024422,2]
[327940568,1716689432491,-1000.0,0.00024422,2]
[327940569,1716689432501,-200.0,0.00024446,2]
[327940570,1716689432512,-150.0,0.00024447,2]
[327940571,1716689432523,-775.98,0.00024458,2]
[327940572,1716689432532,-2751.0,0.0002447,2]
[327940573,1716689432542,-150.0,0.00024581,2]
[327940574,1716689432551,-500.0,0.0002466,2]
[327940575,1716689432560,-150.0,0.00024666,2]
[327940576,1716689432569,-4354.46,0.00024678,2]
[327940577,1716689432579,-7941.8952284,0.00024688,2]
[327940578,1716689432587,-33336.21175213,0.00024689,2]
[327940579,1716689432787,-844.00971584,0.00024689,2]
[327940580,1716689432802,-3322.36953637,0.00024689,2]
[327940581,1716689432811,-38.38178162,0.00024689,2]
[327940582,1716689432823,-303.305,0.00024689,2]
[327940583,1716689432834,-104.0580307,0.00024689,2]
[327940584,1716689432843,-781.0,0.000249,3]
[327940585,1716689432852,-3903.03814561,0.00024921,2]
[327940586,1716689432861,-175.73,0.00024958,2]
[327940587,1716689432870,-150.0,0.00024965,2]
[327940588,1716689432880,-150.0,0.00024968,2]
[327940589,1716689432889,-885.0,0.0002497,15]
[327940590,1716689432898,-885.0,0.0002497,15]
[327940591,1716689432907,-885.0,0.0002498,15]
[327940592,1716689432916,-885.0,0.0002498,15]
[327940593,1716689432925,-234.89,0.0002498,15]
[327940594,1716689432935,-2312.05,0.00024989,2]
[327940595,1716689432944,-150.5,0.0002499,15]
[327940596,1716689432954,-885.0,0.0002499,15]
[327940597,1716689432963,-885.0,0.0002499,15]
[327940598,1716689432972,-151.5,0.0002499,2]
[327940599,1716689432982,-151.5,0.0002499,2]
[327940600,1716689432991,-151.5,0.0002499,2]
[327940601,1716689433000,-33.15115889,0.0002499,2]
[327940602,1716689433011,-118.34884111,0.0002499,2]
[327940603,1716689433021,-151.5,0.0002499,2]
[327940604,1716689433030,-195.82929703,0.00024999,2]
[327940605,1716689433039,-927.45531659,0.00025,2]
[327940606,1716689433048,-104538.64978521,0.00025,2]
[327940607,1716689433090,-1555780.85315555,0.00025,2]
[327940622,1716689438574,-1665.49,0.00022934,2]
[327940624,1716689438584,-889.97,0.00023106,2]
[327940626,1716689438593,-889.97,0.00023169,2]
[327940628,1716689438603,-889.97,0.00023232,2]
[327940630,1716689438614,-889.97,0.00023296,2]
[327940632,1716689438623,-889.97,0.00023359,2]
[327940633,1716689438632,-757.31275514,0.00023422,2]
[327940634,1716689438661,-132.65724486,0.00023422,2]
[327940635,1716689438671,-889.97,0.00023486,2]
[327940636,1716689438680,-677.43297858,0.00023549,2]
[327940637,1716689438692,-212.53702142,0.00023549,2]
[327940638,1716689438701,-889.97,0.00023613,2]
[327940639,1716689438711,-889.97,0.00023676,2]
[327940640,1716689438720,-889.97,0.00023739,2]
[327940641,1716689438729,-889.97,0.00023803,2]
[327940642,1716689438739,-889.97,0.00023866,2]
[327940643,1716689438748,-889.97,0.00023929,2]
[327940644,1716689438757,-889.97,0.00023993,2]
[327940645,1716689438767,-889.97,0.00024056,2]
[327940646,1716689438775,-889.97,0.00024119,2]
[327940647,1716689438785,-889.97,0.00024183,2]
[327940648,1716689438793,-889.97,0.00024246,2]
[327940649,1716689438803,-889.97,0.0002431,2]
[327940650,1716689438812,-8951.48329155,0.00025,9]
[327940651,1716689438821,-220261.61969838,0.00025,2]
[327940652,1716689438830,-150.0,0.00025035,2]
[327940653,1716689438838,-900.0,0.00025053,2]
[327940654,1716689438847,-150.0,0.00025103,2]
[327940655,1716689438856,-23890.0,0.00025109,2]
[327940656,1716689438865,-150.0,0.00025223,2]
[327940657,1716689438875,-254.92,0.00025227,2]
[327940658,1716689438883,-180.0,0.00025283,2]
[327940659,1716689438892,-150.0,0.00025303,2]
[327940660,1716689438901,-172.94,0.00025305,2]
[327940661,1716689438910,-150.0,0.00025371,2]
[327940662,1716689438919,-150.0,0.00025384,2]
[327940663,1716689438928,-150.0,0.00025424,2]
[327940664,1716689438937,-151.5,0.0002544,2]
[327940665,1716689438946,-150.0,0.00025461,2]
[327940666,1716689438954,-150.0,0.00025465,2]
[327940667,1716689438964,-150.0,0.00025522,2]
[327940668,1716689438974,-150.0,0.00025548,2]
[327940669,1716689438983,-900.0,0.00025601,2]
[327940670,1716689438992,-150.0,0.00025612,2]
[327940671,1716689439001,-166.54,0.00025676,2]
[327940672,1716689439010,-6315.30564003,0.00025697,2]
[327940673,1716689439019,-170.59,0.00025724,2]
[327940674,1716689439028,-178.89,0.00025792,2]
[327940675,1716689439038,-3903.0381456,0.00025874,2]
[327940676,1716689439047,-150.0,0.00025906,2]
[327940677,1716689439057,-150.0,0.00025964,2]
[327940678,1716689439066,-150.0,0.00025968,2]
[327940679,1716689439075,-1595.96253709,0.00026009,2]
[327940680,1716689439084,-1398.93,0.00026029,2]
[327940681,1716689439093,-900.0,0.00026149,2]
[327940682,1716689439102,-150.0,0.00026174,2]
[327940683,1716689439112,-150.0,0.00026195,2]
[327940684,1716689439122,-595.73,0.00026212,2]
[327940685,1716689439132,-150.0,0.0002622,2]
[327940686,1716689439142,-150.0,0.00026304,2]
[327940687,1716689439151,-150.0,0.00026402,2]
[327940688,1716689439161,-150.0,0.00026405,2]
[327940689,1716689439170,-1185.28256148,0.00026531,2]
[327940690,1716689439181,-6315.30563994,0.00026563,2]
[327940691,1716689439190,-150.0,0.00026575,2]
[327940692,1716689439200,-399.15643293,0.00026582,2]
[327940693,1716689439210,-26502.34,0.00026591,2]
[327940694,1716689439219,-9688.21,0.00026591,2]
[327940695,1716689439229,-150.0,0.00026623,2]
[327940696,1716689439239,-150.0,0.00026635,2]
[327940697,1716689439248,-900.0,0.00026697,2]
[327940698,1716689439258,-150.0,0.00026699,2]
[327940699,1716689439267,-3903.0381456,0.00026826,2]
[327940700,1716689439276,-300.0,0.00026835,2]
[327940701,1716689439285,-152.14,0.00026836,2]
[327940702,1716689439295,-152.14,0.00026844,2]
[327940703,1716689439304,-150.0,0.0002685,2]
[327940704,1716689439314,-1500.0,0.00026851,2]
[327940705,1716689439323,-152.14,0.00026851,2]
[327940706,1716689439333,-150.0,0.00026854,2]
[327940707,1716689439342,-152.14,0.00026859,2]
[327940708,1716689439351,-1500.0,0.00026861,2]
[327940709,1716689439360,-1500.0,0.00026867,2]
[327940710,1716689439369,-152.14,0.00026867,2]
[327940711,1716689439379,-152.14,0.00026875,2]
[327940712,1716689439388,-152.14,0.00026883,2]
[327940713,1716689439398,-152.14,0.00026891,2]
[327940714,1716689439410,-152.14,0.00026899,2]
[327940715,1716689439419,-7682.095,0.000269,2]
[327940716,1716689439429,-806.9412,0.000269,2]
[327940717,1716689439444,-260.30029894,0.00026905,2]
[327940718,1716689439454,-200.0,0.00026906,2]
[327940719,1716689439464,-412.87763736,0.00026906,2]
[327940720,1716689439475,-152.14,0.00026907,2]
[327940721,1716689439484,-986.04996933,0.00026912,2]
[327940722,1716689439493,-152.14,0.00026915,2]
[327940723,1716689439503,-152.14,0.00026922,2]
[327940724,1716689439513,-150.0,0.0002693,2]
[327940725,1716689439522,-152.14,0.0002693,2]
[327940726,1716689439532,-152.14,0.00026938,2]
[327940727,1716689439542,-314.71743852,0.0002694,2]
[327940728,1716689439552,-154.36286224,0.00026946,2]
[327940729,1716689439561,-152.14,0.00026946,2]
[327940730,1716689439570,-152.14,0.00026954,2]
[327940731,1716689439580,-150.0,0.00026957,2]
[327940732,1716689439589,-152.14,0.00026962,2]
[327940733,1716689439598,-152.14,0.0002697,2]
[327940734,1716689439607,-151.5,0.0002699,2]
[327940735,1716689439617,-150.0,0.00026998,2]
[327940736,1716689439626,-103949.66509047,0.00027,2]
[327940737,1716689439806,-1398.82810855,0.00027,2]
[327940738,1716689441365,-846.67044005,0.00024935,2]
[327940739,1716689441375,-78167.13930693,0.00027,2]
[327940740,1716689441384,-170.59,0.00027089,2]
[327940741,1716689441393,-150.0,0.00027099,2]
[327940742,1716689441403,-150.0,0.000271,2]
[327940743,1716689441413,-150.0,0.00027143,2]
[327940744,1716689441422,-150.0,0.00027161,2]
[327940745,1716689441431,-6260.7,0.00027161,2]
[327940746,1716689441446,-150.0,0.00027169,2]
[327940747,1716689441455,-152.17136673,0.00027178,2]
[327940748,1716689441465,-150.0,0.00027188,2]
[327940749,1716689441474,-150.0,0.00027212,2]
[327940750,1716689441486,-1500.0,0.00027215,2]
[327940751,1716689441495,-150.0,0.00027239,2]
[327940752,1716689441504,-900.0,0.00027245,2]
[327940753,1716689441514,-168.33385912,0.00027286,2]
[327940754,1716689441523,-150.0,0.00027338,2]
[327940755,1716689441532,-988.513,0.00027367,2]
[327940756,1716689441541,-442.802,0.00027367,2]
[327940757,1716689441550,-151.006,0.00027367,2]
[327940758,1716689441559,-166.124,0.00027367,2]
[327940759,1716689441569,-2418.311,0.00027367,2]
[327940760,1716689441578,-566.525,0.00027367,2]
[327940761,1716689441587,-818.022,0.00027367,2]
[327940762,1716689441596,-217.0,0.00027367,2]
[327940763,1716689441606,-1664.362,0.00027367,2]
[327940764,1716689441616,-1138.927,0.00027367,2]
[327940765,1716689441625,-3191.534,0.00027367,2]
[327940766,1716689441634,-5847.57,0.00027367,2]
[327940767,1716689441643,-37928.0,0.00027367,2]
[327940768,1716689441653,-293.121,0.00027367,2]
[327940769,1716689441662,-5164.553,0.00027367,2]
[327940770,1716689441671,-1467.0,0.00027367,2]
[327940771,1716689441682,-150.0,0.00027368,2]
[327940772,1716689441692,-150.0,0.00027368,2]
[327940773,1716689441701,-150.0,0.00027369,2]
[327940774,1716689441711,-150.0,0.00027386,2]
[327940775,1716689441720,-805.2552867,0.0002739,2]
[327940776,1716689441730,-1084.61396672,0.00027402,2]
[327940777,1716689441739,-150.0,0.00027423,2]
[327940778,1716689441748,-6315.30563994,0.0002743,2]
[327940779,1716689441757,-150.0,0.00027469,2]
[327940780,1716689441767,-1000.0,0.00027474,2]
[327940781,1716689441776,-1500.0,0.00027488,2]
[327940782,1716689441785,-150.0,0.00027506,2]
[327940783,1716689441794,-1500.0,0.0002752,2]
[327940784,1716689441804,-150.0,0.00027541,2]
[327940785,1716689441813,-197.18418595,0.00027563,2]
[327940786,1716689441822,-150.0,0.00027586,2]
[327940787,1716689441832,-150.0,0.00027625,2]
[327940788,1716689441842,-150.0,0.00027625,2]
[327940789,1716689441851,-1500.0,0.00027629,2]
[327940790,1716689441860,-300.0,0.00027633,2]
[327940791,1716689441870,-150.0,0.00027644,2]
[327940792,1716689441880,-150.0,0.00027657,2]
[327940793,1716689441890,-150.0,0.00027686,2]
[327940794,1716689441900,-1500.0,0.00027722,2]
[327940795,1716689441910,-289.06587923,0.00027726,2]
[327940796,1716689441919,-150.0,0.00027731,2]
[327940797,1716689441929,-300.0,0.00027735,2]
[327940798,1716689441938,-1500.0,0.00027748,2]
[327940799,1716689441947,-1500.0,0.00027756,2]
[327940800,1716689441957,-300.0,0.00027758,2]
[327940801,1716689441967,-150.0,0.00027759,2]
[327940802,1716689441977,-150.0,0.00027771,2]
[327940803,1716689441987,-3903.0381456,0.00027779,2]
[327940804,1716689441997,-900.0,0.00027793,2]
[327940805,1716689442006,-150.0,0.00027812,2]
[327940806,1716689442016,-300.0,0.00027813,2]
[327940807,1716689442025,-917.3356,0.00027861,2]
[327940808,1716689442035,-1500.0,0.00027874,2]
[327940809,1716689442044,-150.0,0.00027885,2]
[327940810,1716689442054,-150.0,0.00027893,2]
[327940811,1716689442063,-203.38,0.000279,2]
[327940812,1716689442073,-150.0,0.00027912,2]
[327940813,1716689442083,-150.0,0.0002793,2]
[327940814,1716689442092,-300.0,0.00027947,2]
[327940815,1716689442101,-1500.0,0.00027955,2]
[327940816,1716689442111,-1161.76456115,0.00027959,2]
[327940817,1716689442122,-155.08874396,0.00027959,2]
[327940818,1716689442131,-756.00290731,0.0002796,2]